[Event "Titled Tuesday Blitz March 22 Early 2022"]
[White "Suarez Uriel, Adrian"]
[Black "Koridze, Lile"]
[WhiteFideId "22230874"]
[BlackFideId "13612514"]
[WhiteElo "2316"]
[BlackElo "1999"]
[Result "1-0"]
[Round "09"]
[TimeControl "180+1"]
[Date "2022.03.22"]
[WhiteClock "0:01:35"]
[BlackClock "0:00:13"]

1. d4 {[%clk 0:03:00]}  Nf6 {[%clk 0:02:59]} 2. c4 {[%clk 0:02:59]}  e6 {[%clk 0:03:00]} 3. Nf3 {[%clk 0:02:58]}  d5 {[%clk 0:03:00]} 4. g3 {[%clk 0:02:57]}  Bb4+ {[%clk 0:03:00]} 5. Bd2 {[%clk 0:02:57]}  Be7 {[%clk 0:03:00]} 6. Bg2 {[%clk 0:02:57]}  O-O {[%clk 0:03:00]} 7. Bf4 {[%clk 0:02:57]}  c6 {[%clk 0:02:59]} 8. O-O {[%clk 0:02:57]}  b6 {[%clk 0:02:58]} 9. Qc2 {[%clk 0:02:57]}  Bb7 {[%clk 0:02:58]} 10. Ne5 {[%clk 0:02:55]}  Nbd7 {[%clk 0:02:57]} 11. cxd5 {[%clk 0:02:51]}  cxd5 {[%clk 0:02:55]} 12. Nc6 {[%clk 0:02:50]}  Bxc6 {[%clk 0:02:53]} 13. Qxc6 {[%clk 0:02:50]}  Qc8 {[%clk 0:02:47]} 14. Qa4 {[%clk 0:02:47]}  Qb7 {[%clk 0:02:47]} 15. Nd2 {[%clk 0:02:47]}  Rfc8 {[%clk 0:02:46]} 16. Rfc1 {[%clk 0:02:46]}  h6 {[%clk 0:02:23]} 17. h3 {[%clk 0:02:31]}  b5 {[%clk 0:02:04]} 18. Qd1 {[%clk 0:02:29]}  Nb6 {[%clk 0:02:03]} 19. b3 {[%clk 0:02:28]}  Ba3 {[%clk 0:02:01]} 20. Rxc8+ {[%clk 0:02:27]}  Rxc8 {[%clk 0:02:02]} 21. Nf3 {[%clk 0:02:22]}  Nbd7 {[%clk 0:01:49]} 22. Bc1 {[%clk 0:02:21]}  Bb4 {[%clk 0:01:45]} 23. Bd2 {[%clk 0:02:16]}  Ba3 {[%clk 0:01:44]} 24. Ne1 {[%clk 0:02:16]}  Ne4 {[%clk 0:01:40]} 25. Nd3 {[%clk 0:02:15]}  Ndf6 {[%clk 0:01:29]} 26. Bb4 {[%clk 0:02:14]}  Nc3 {[%clk 0:01:21]} 27. Qd2 {[%clk 0:02:14]}  Nfe4 {[%clk 0:01:21]} 28. Bxe4 {[%clk 0:02:13]}  Nxe4 {[%clk 0:01:20]} 29. Qe1 {[%clk 0:02:12]}  Qa6 {[%clk 0:01:07]} 30. Kg2 {[%clk 0:02:10]}  Rc2 {[%clk 0:01:04]} 31. f3 {[%clk 0:02:05]}  Nf6 {[%clk 0:00:44]} 32. Nc5 {[%clk 0:02:04]}  Bxb4 {[%clk 0:00:44]} 33. Qxb4 {[%clk 0:01:54]}  Qc6 {[%clk 0:00:42]} 34. Kf2 {[%clk 0:01:52]}  Qb6 {[%clk 0:00:34]} 35. a4 {[%clk 0:01:51]}  bxa4 {[%clk 0:00:32]} 36. Rxa4 {[%clk 0:01:44]}  Rb2 {[%clk 0:00:18]} 37. Qc3 {[%clk 0:01:35]}  Rb1 {[%clk 0:00:17]} 38. Rb4 {[%clk 0:01:35]}  Qc7 {[%clk 0:00:16]} 39. Rb7 {[%clk 0:01:35]}  Qc6 {[%clk 0:00:13]} 40. Rb8+ {[%clk 0:01:35]}  Kh7 {[%clk 0:00:13]} 41. Qc2+ {[%clk 0:01:35]} 1-0


[Site "https://www.chess.com"]

[Event "Titled Tuesday Blitz March 22 Early 2022"]
[White "Tanenbaum, Zachary"]
[Black "Namitbir Singh Walia"]
[WhiteFideId "2060850"]
[BlackFideId "35071068"]
[WhiteElo "2168"]
[BlackElo "1565"]
[Result "1-0"]
[Round "09"]
[TimeControl "180+1"]
[Date "2022.03.22"]
[WhiteClock "0:00:31"]
[BlackClock "0:00:14"]

1. e4 {[%clk 0:03:00]}  c5 {[%clk 0:02:58]} 2. Nf3 {[%clk 0:03:01]}  Nc6 {[%clk 0:02:56]} 3. Nc3 {[%clk 0:03:00]}  g6 {[%clk 0:02:54]} 4. d4 {[%clk 0:03:01]}  cxd4 {[%clk 0:02:53]} 5. Nxd4 {[%clk 0:03:02]}  Bg7 {[%clk 0:02:53]} 6. Be3 {[%clk 0:03:02]}  Nf6 {[%clk 0:02:54]} 7. Bc4 {[%clk 0:03:02]}  Qa5 {[%clk 0:02:54]} 8. O-O {[%clk 0:03:00]}  O-O {[%clk 0:02:52]} 9. Nb3 {[%clk 0:03:00]}  Qc7 {[%clk 0:02:45]} 10. Be2 {[%clk 0:02:59]}  d6 {[%clk 0:02:42]} 11. f4 {[%clk 0:02:59]}  a6 {[%clk 0:02:36]} 12. Qd2 {[%clk 0:02:53]}  Ng4 {[%clk 0:02:27]} 13. Bxg4 {[%clk 0:02:50]}  Bxg4 {[%clk 0:02:28]} 14. f5 {[%clk 0:02:39]}  gxf5 {[%clk 0:01:27]} 15. Nd5 {[%clk 0:02:32]}  Qd8 {[%clk 0:01:19]} 16. exf5 {[%clk 0:02:31]}  e6 {[%clk 0:01:06]} 17. f6 {[%clk 0:01:19]}  exd5 {[%clk 0:01:05]} 18. fxg7 {[%clk 0:01:14]}  Re8 {[%clk 0:01:05]} 19. Rae1 {[%clk 0:01:02]}  Be6 {[%clk 0:00:58]} 20. Nd4 {[%clk 0:00:59]}  Nxd4 {[%clk 0:00:57]} 21. Bxd4 {[%clk 0:01:00]}  Rc8 {[%clk 0:00:50]} 22. c3 {[%clk 0:00:43]}  Qd7 {[%clk 0:00:29]} 23. Qf4 {[%clk 0:00:40]}  b5 {[%clk 0:00:21]} 24. Re3 {[%clk 0:00:32]}  h5 {[%clk 0:00:14]} 25. Qh6 {[%clk 0:00:31]} 1-0


[Site "https://www.chess.com"]

[Event "Titled Tuesday Blitz March 22 Early 2022"]
[White "Terry, Renato"]
[Black "Shuvalova, Polina"]
[WhiteFideId "3803457"]
[BlackFideId "24171760"]
[WhiteElo "2577"]
[BlackElo "2355"]
[Result "1-0"]
[Round "09"]
[TimeControl "180+1"]
[Date "2022.03.22"]
[WhiteClock "0:02:31"]
[BlackClock "0:02:07"]

1. d4 {[%clk 0:03:00]}  Nf6 {[%clk 0:02:59]} 2. Bg5 {[%clk 0:03:00]}  e6 {[%clk 0:02:57]} 3. e4 {[%clk 0:02:59]}  h6 {[%clk 0:02:58]} 4. Bxf6 {[%clk 0:02:59]}  Qxf6 {[%clk 0:02:59]} 5. c3 {[%clk 0:02:59]}  c5 {[%clk 0:02:59]} 6. Nf3 {[%clk 0:02:54]}  cxd4 {[%clk 0:02:56]} 7. cxd4 {[%clk 0:02:55]}  Bb4+ {[%clk 0:02:54]} 8. Nc3 {[%clk 0:02:55]}  b6 {[%clk 0:02:51]} 9. Bd3 {[%clk 0:02:49]}  Bb7 {[%clk 0:02:50]} 10. O-O {[%clk 0:02:49]}  Bxc3 {[%clk 0:02:49]} 11. bxc3 {[%clk 0:02:50]}  d6 {[%clk 0:02:50]} 12. e5 {[%clk 0:02:39]}  dxe5 {[%clk 0:02:38]} 13. Bb5+ {[%clk 0:02:34]}  Ke7 {[%clk 0:02:07]} 14. dxe5 {[%clk 0:02:31]} 1-0


[Site "https://www.chess.com"]

[Event "Titled Tuesday Blitz March 22 Early 2022"]
[White "Thomas, Anysia"]
[Black "Harish, Neeraj"]
[WhiteFideId "670472"]
[BlackFideId "30958130"]
[WhiteElo "2002"]
[BlackElo "1574"]
[Result "0-1"]
[Round "09"]
[TimeControl "180+1"]
[Date "2022.03.22"]
[WhiteClock "0:00:02"]
[BlackClock "0:00:12"]

1. d4 {[%clk 0:02:40]}  d5 {[%clk 0:02:52]} 2. c4 {[%clk 0:02:39]}  e6 {[%clk 0:02:52]} 3. Nf3 {[%clk 0:02:38]}  Nf6 {[%clk 0:02:50]} 4. g3 {[%clk 0:02:39]}  Be7 {[%clk 0:02:48]} 5. Bg2 {[%clk 0:02:39]}  O-O {[%clk 0:02:47]} 6. O-O {[%clk 0:02:40]}  dxc4 {[%clk 0:02:47]} 7. Ne5 {[%clk 0:02:38]}  Nc6 {[%clk 0:02:46]} 8. Bxc6 {[%clk 0:02:34]}  bxc6 {[%clk 0:02:47]} 9. Nxc6 {[%clk 0:02:35]}  Qe8 {[%clk 0:02:47]} 10. Nxe7+ {[%clk 0:02:36]}  Qxe7 {[%clk 0:02:48]} 11. Qa4 {[%clk 0:02:36]}  e5 {[%clk 0:02:42]} 12. dxe5 {[%clk 0:02:33]}  Qxe5 {[%clk 0:02:43]} 13. Nc3 {[%clk 0:02:33]}  Be6 {[%clk 0:02:40]} 14. Bf4 {[%clk 0:02:29]}  Qc5 {[%clk 0:02:40]} 15. Be3 {[%clk 0:01:34]}  Qe7 {[%clk 0:02:24]} 16. Rad1 {[%clk 0:01:18]}  Rab8 {[%clk 0:02:14]} 17. Qc2 {[%clk 0:01:15]}  Bh3 {[%clk 0:02:05]} 18. Rfe1 {[%clk 0:01:14]}  Rfd8 {[%clk 0:01:56]} 19. Bxa7 {[%clk 0:01:10]}  Ra8 {[%clk 0:01:47]} 20. Bd4 {[%clk 0:00:44]}  Ng4 {[%clk 0:01:31]} 21. Qe4 {[%clk 0:00:34]}  Qxe4 {[%clk 0:01:26]} 22. Nxe4 {[%clk 0:00:35]}  Rxa2 {[%clk 0:01:26]} 23. Bc3 {[%clk 0:00:34]}  Rxd1 {[%clk 0:00:53]} 24. Rxd1 {[%clk 0:00:35]}  h6 {[%clk 0:00:46]} 25. Nc5 {[%clk 0:00:18]}  Ra5 {[%clk 0:00:27]} 26. Ne4 {[%clk 0:00:17]}  Ne5 {[%clk 0:00:23]} 27. f3 {[%clk 0:00:15]}  Rb5 {[%clk 0:00:21]} 28. g4 {[%clk 0:00:13]}  f5 {[%clk 0:00:19]} 29. Nf2 {[%clk 0:00:13]}  fxg4 {[%clk 0:00:19]} 30. f4 {[%clk 0:00:12]}  Ng6 {[%clk 0:00:15]} 31. Rd8+ {[%clk 0:00:11]}  Kh7 {[%clk 0:00:15]} 32. e4 {[%clk 0:00:11]}  Nxf4 {[%clk 0:00:15]} 33. Rd1 {[%clk 0:00:09]}  Ne2+ {[%clk 0:00:14]} 34. Kh1 {[%clk 0:00:07]}  Nxc3 {[%clk 0:00:15]} 35. bxc3 {[%clk 0:00:07]}  Rb3 {[%clk 0:00:16]} 36. Rc1 {[%clk 0:00:07]}  Rb2 {[%clk 0:00:15]} 37. Kg1 {[%clk 0:00:07]}  Re2 {[%clk 0:00:15]} 38. Rd1 {[%clk 0:00:06]}  Re3 {[%clk 0:00:14]} 39. Rc1 {[%clk 0:00:05]}  h5 {[%clk 0:00:13]} 40. Kh1 {[%clk 0:00:04]}  h4 {[%clk 0:00:13]} 41. Kg1 {[%clk 0:00:05]}  Kh6 {[%clk 0:00:13]} 42. Kh1 {[%clk 0:00:05]}  Kg5 {[%clk 0:00:13]} 43. Kg1 {[%clk 0:00:05]}  Kf4 {[%clk 0:00:13]} 44. Rd1 {[%clk 0:00:04]}  Kf3 {[%clk 0:00:12]} 45. Nxh3 {[%clk 0:00:01]}  gxh3 {[%clk 0:00:12]} 46. Rf1+ {[%clk 0:00:02]}  Kxe4 {[%clk 0:00:12]} 47. Rd1 {[%clk 0:00:02]}  Rxc3 {[%clk 0:00:11]} 48. Re1+ {[%clk 0:00:02]}  Re3 {[%clk 0:00:12]} 49. Rc1 {[%clk 0:00:02]}  c3 {[%clk 0:00:12]} 50. Kh1 {[%clk 0:00:02]}  Kd3 {[%clk 0:00:12]} 51. Rf1 {[%clk 0:00:02]}  c2 {[%clk 0:00:12]} 52. Rc1 {[%clk 0:00:01]}  Kc3 {[%clk 0:00:12]} 53. Rg1 {[%clk 0:00:01]}  Rd3 {[%clk 0:00:12]} 54. Rf1 {[%clk 0:00:01]}  Rd1 {[%clk 0:00:12]} 55. Kg1 {[%clk 0:00:01]}  Rxf1+ {[%clk 0:00:12]} 56. Kxf1 {[%clk 0:00:02]}  c1=Q+ {[%clk 0:00:12]} 0-1


[Site "https://www.chess.com"]

[Event "Titled Tuesday Blitz March 22 Early 2022"]
[White "Tsukerman, Julia"]
[Black "Saim, Mohamed Ilias"]
[WhiteFideId "2621649"]
[BlackFideId "7900465"]
[WhiteElo "2101"]
[BlackElo "2006"]
[Result "1/2-1/2"]
[Round "09"]
[TimeControl "180+1"]
[Date "2022.03.22"]
[WhiteClock "0:00:59"]
[BlackClock "0:00:27"]

1. e4 {[%clk 0:03:00]}  e5 {[%clk 0:02:58]} 2. Nf3 {[%clk 0:02:58]}  Nc6 {[%clk 0:02:57]} 3. Bb5 {[%clk 0:02:59]}  Nge7 {[%clk 0:02:56]} 4. c3 {[%clk 0:02:57]}  g6 {[%clk 0:02:55]} 5. d3 {[%clk 0:02:57]}  Bg7 {[%clk 0:02:53]} 6. O-O {[%clk 0:02:57]}  a6 {[%clk 0:02:53]} 7. Ba4 {[%clk 0:02:57]}  O-O {[%clk 0:02:53]} 8. Re1 {[%clk 0:02:57]}  b5 {[%clk 0:02:52]} 9. Bb3 {[%clk 0:02:57]}  d6 {[%clk 0:02:52]} 10. h3 {[%clk 0:02:57]}  h6 {[%clk 0:02:49]} 11. d4 {[%clk 0:02:55]}  Bb7 {[%clk 0:02:33]} 12. Bc2 {[%clk 0:02:38]}  exd4 {[%clk 0:02:18]} 13. Nxd4 {[%clk 0:02:37]}  Kh7 {[%clk 0:02:13]} 14. Nxc6 {[%clk 0:02:33]}  Nxc6 {[%clk 0:02:12]} 15. Be3 {[%clk 0:02:31]}  Ne5 {[%clk 0:02:10]} 16. Nd2 {[%clk 0:02:30]}  Qh4 {[%clk 0:01:58]} 17. Qe2 {[%clk 0:02:17]}  Rae8 {[%clk 0:01:57]} 18. f3 {[%clk 0:02:15]}  f5 {[%clk 0:01:39]} 19. Qf2 {[%clk 0:02:11]}  Qh5 {[%clk 0:01:32]} 20. exf5 {[%clk 0:02:03]}  gxf5 {[%clk 0:01:31]} 21. f4 {[%clk 0:01:59]}  Ng6 {[%clk 0:01:19]} 22. Nf3 {[%clk 0:01:54]}  Bxf3 {[%clk 0:01:12]} 23. Qxf3 {[%clk 0:01:53]}  Qxf3 {[%clk 0:01:12]} 24. gxf3 {[%clk 0:01:53]}  Ne7 {[%clk 0:01:03]} 25. Bb3 {[%clk 0:01:50]}  c5 {[%clk 0:00:58]} 26. Rad1 {[%clk 0:01:48]}  c4 {[%clk 0:00:57]} 27. Bc2 {[%clk 0:01:46]}  d5 {[%clk 0:00:57]} 28. Bc5 {[%clk 0:01:43]}  Rf7 {[%clk 0:00:56]} 29. Kf2 {[%clk 0:01:34]}  Bf6 {[%clk 0:00:55]} 30. Kf1 {[%clk 0:01:24]}  Bh4 {[%clk 0:00:53]} 31. Re2 {[%clk 0:01:21]}  Rc8 {[%clk 0:00:48]} 32. Bxe7 {[%clk 0:01:20]}  Bxe7 {[%clk 0:00:47]} 33. Rxd5 {[%clk 0:01:20]}  Rcf8 {[%clk 0:00:46]} 34. Ree5 {[%clk 0:01:18]}  b4 {[%clk 0:00:41]} 35. Bxf5+ {[%clk 0:01:13]}  Kg7 {[%clk 0:00:41]} 36. Be4 {[%clk 0:01:10]}  bxc3 {[%clk 0:00:39]} 37. bxc3 {[%clk 0:01:10]}  Bf6 {[%clk 0:00:39]} 38. Rf5 {[%clk 0:01:06]}  Bxc3 {[%clk 0:00:39]} 39. Rxf7+ {[%clk 0:01:07]}  Rxf7 {[%clk 0:00:39]} 40. Rc5 {[%clk 0:01:06]}  Rxf4 {[%clk 0:00:39]} 41. Rxc4 {[%clk 0:01:06]}  Be5 {[%clk 0:00:36]} 42. Rc6 {[%clk 0:01:05]}  a5 {[%clk 0:00:36]} 43. Ra6 {[%clk 0:01:04]}  Bc3 {[%clk 0:00:36]} 44. Ra7+ {[%clk 0:01:02]}  Kf6 {[%clk 0:00:35]} 45. Ra6+ {[%clk 0:01:02]}  Kg5 {[%clk 0:00:35]} 46. Rg6+ {[%clk 0:01:01]}  Kh4 {[%clk 0:00:35]} 47. Rxh6+ {[%clk 0:01:01]}  Kg3 {[%clk 0:00:34]} 48. h4 {[%clk 0:00:57]}  Rxh4 {[%clk 0:00:34]} 49. Rxh4 {[%clk 0:00:57]}  Kxh4 {[%clk 0:00:33]} 50. Ke2 {[%clk 0:00:58]}  Kg3 {[%clk 0:00:29]} 51. Kd3 {[%clk 0:00:58]}  Be5 {[%clk 0:00:28]} 52. Kc4 {[%clk 0:00:58]}  Kf4 {[%clk 0:00:27]} 53. Kb5 {[%clk 0:00:58]}  Bc3 {[%clk 0:00:27]} 54. a4 {[%clk 0:00:57]}  Be1 {[%clk 0:00:27]} 55. Kc4 {[%clk 0:00:57]}  Bb4 {[%clk 0:00:27]} 56. Kb5 {[%clk 0:00:57]}  Be1 {[%clk 0:00:28]} 57. Kc4 {[%clk 0:00:58]}  Bb4 {[%clk 0:00:28]} 58. Kb5 {[%clk 0:00:59]}  Be1 {[%clk 0:00:27]} 1/2-1/2


[Site "https://www.chess.com"]

[Event "Titled Tuesday Blitz March 22 Early 2022"]
[White "Urazayev, Arystanbek"]
[Black "Kulkarni, Rakesh"]
[WhiteFideId "13709810"]
[BlackFideId "5037077"]
[WhiteElo "2819"]
[BlackElo "2447"]
[Result "1/2-1/2"]
[Round "09"]
[TimeControl "180+1"]
[Date "2022.03.22"]
[WhiteClock "0:00:13"]
[BlackClock "0:00:04"]

1. e4 {[%clk 0:03:00]}  c5 {[%clk 0:02:53]} 2. Nf3 {[%clk 0:02:59]}  e6 {[%clk 0:02:52]} 3. d4 {[%clk 0:02:59]}  cxd4 {[%clk 0:02:48]} 4. Nxd4 {[%clk 0:03:00]}  a6 {[%clk 0:02:48]} 5. a3 {[%clk 0:02:59]}  b5 {[%clk 0:02:42]} 6. a4 {[%clk 0:02:59]}  b4 {[%clk 0:02:40]} 7. Nd2 {[%clk 0:02:59]}  Bb7 {[%clk 0:02:39]} 8. Bd3 {[%clk 0:02:59]}  Qc7 {[%clk 0:02:35]} 9. O-O {[%clk 0:02:56]}  Nf6 {[%clk 0:02:34]} 10. Re1 {[%clk 0:02:54]}  d6 {[%clk 0:02:32]} 11. a5 {[%clk 0:02:52]}  Be7 {[%clk 0:02:31]} 12. N2b3 {[%clk 0:02:47]}  Nbd7 {[%clk 0:02:29]} 13. Bg5 {[%clk 0:02:38]}  O-O {[%clk 0:02:27]} 14. Rc1 {[%clk 0:02:36]}  Rac8 {[%clk 0:02:22]} 15. c4 {[%clk 0:02:35]}  Nc5 {[%clk 0:02:20]} 16. Nxc5 {[%clk 0:02:28]}  dxc5 {[%clk 0:02:20]} 17. e5 {[%clk 0:02:28]}  cxd4 {[%clk 0:02:05]} 18. exf6 {[%clk 0:02:28]}  Bxf6 {[%clk 0:02:02]} 19. Bxf6 {[%clk 0:01:52]}  gxf6 {[%clk 0:02:03]} 20. Qg4+ {[%clk 0:01:46]}  Kh8 {[%clk 0:02:00]} 21. Qxd4 {[%clk 0:01:47]}  Qd8 {[%clk 0:01:29]} 22. Qe3 {[%clk 0:01:47]}  Rg8 {[%clk 0:01:10]} 23. f3 {[%clk 0:01:47]}  Rg5 {[%clk 0:00:34]} 24. c5 {[%clk 0:01:37]}  Qxa5 {[%clk 0:00:30]} 25. Qf4 {[%clk 0:01:14]}  Qd8 {[%clk 0:00:26]} 26. Rcd1 {[%clk 0:01:14]}  Rd5 {[%clk 0:00:22]} 27. Bc2 {[%clk 0:00:56]}  Rcxc5 {[%clk 0:00:19]} 28. Bb3 {[%clk 0:00:57]}  Rxd1 {[%clk 0:00:17]} 29. Rxd1 {[%clk 0:00:58]}  Bd5 {[%clk 0:00:17]} 30. Ba4 {[%clk 0:00:48]}  Kg7 {[%clk 0:00:13]} 31. h4 {[%clk 0:00:49]}  a5 {[%clk 0:00:12]} 32. h5 {[%clk 0:00:49]}  h6 {[%clk 0:00:12]} 33. Rd4 {[%clk 0:00:47]}  Qc7 {[%clk 0:00:11]} 34. Qg4+ {[%clk 0:00:46]}  Kf8 {[%clk 0:00:12]} 35. Qh4 {[%clk 0:00:38]}  Rc1+ {[%clk 0:00:12]} 36. Bd1 {[%clk 0:00:38]}  Ke7 {[%clk 0:00:10]} 37. Qf2 {[%clk 0:00:19]}  Bb3 {[%clk 0:00:09]} 38. Qe1 {[%clk 0:00:09]}  Bxd1 {[%clk 0:00:07]} 39. Rxd1 {[%clk 0:00:10]}  Qc5+ {[%clk 0:00:06]} 40. Kf1 {[%clk 0:00:09]}  Rxd1 {[%clk 0:00:07]} 41. Qxd1 {[%clk 0:00:10]}  Qxh5 {[%clk 0:00:07]} 42. Qd4 {[%clk 0:00:10]}  Qb5+ {[%clk 0:00:07]} 43. Kg1 {[%clk 0:00:09]}  a4 {[%clk 0:00:04]} 44. Qa7+ {[%clk 0:00:08]}  Kf8 {[%clk 0:00:04]} 45. Qd4 {[%clk 0:00:09]}  Ke7 {[%clk 0:00:03]} 46. Qa7+ {[%clk 0:00:09]}  Kf8 {[%clk 0:00:04]} 47. Qd4 {[%clk 0:00:09]}  e5 {[%clk 0:00:04]} 48. Qh4 {[%clk 0:00:07]}  Ke7 {[%clk 0:00:03]} 49. Qe4 {[%clk 0:00:03]}  a3 {[%clk 0:00:04]} 50. bxa3 {[%clk 0:00:04]}  bxa3 {[%clk 0:00:04]} 51. Qa8 {[%clk 0:00:04]}  Qc5+ {[%clk 0:00:04]} 52. Kh2 {[%clk 0:00:05]}  f5 {[%clk 0:00:04]} 53. Qb7+ {[%clk 0:00:05]}  Kf6 {[%clk 0:00:04]} 54. Kh3 {[%clk 0:00:06]}  Qd6 {[%clk 0:00:03]} 55. Qb3 {[%clk 0:00:05]}  Kg7 {[%clk 0:00:04]} 56. g4 {[%clk 0:00:05]}  fxg4+ {[%clk 0:00:04]} 57. fxg4 {[%clk 0:00:05]}  Qa6 {[%clk 0:00:04]} 58. Qa2 {[%clk 0:00:05]}  Qd3+ {[%clk 0:00:04]} 59. Kh4 {[%clk 0:00:05]}  Qe3 {[%clk 0:00:03]} 60. Qa1 {[%clk 0:00:05]}  Qf2+ {[%clk 0:00:03]} 61. Kh3 {[%clk 0:00:06]}  Qb2 {[%clk 0:00:03]} 62. Qf1 {[%clk 0:00:05]}  a2 {[%clk 0:00:03]} 63. g5 {[%clk 0:00:06]}  hxg5 {[%clk 0:00:03]} 64. Qf5 {[%clk 0:00:07]}  Qc3+ {[%clk 0:00:03]} 65. Kg4 {[%clk 0:00:07]}  a1=Q {[%clk 0:00:03]} 66. Qxg5+ {[%clk 0:00:07]}  Kf8 {[%clk 0:00:04]} 67. Qd8+ {[%clk 0:00:08]}  Kg7 {[%clk 0:00:04]} 68. Qg5+ {[%clk 0:00:09]}  Kh7 {[%clk 0:00:05]} 69. Qh5+ {[%clk 0:00:10]}  Kg8 {[%clk 0:00:05]} 70. Qg5+ {[%clk 0:00:11]}  Kh8 {[%clk 0:00:05]} 71. Qh6+ {[%clk 0:00:11]}  Kg8 {[%clk 0:00:05]} 72. Qg5+ {[%clk 0:00:12]}  Kf8 {[%clk 0:00:05]} 73. Qd8+ {[%clk 0:00:12]}  Kg7 {[%clk 0:00:04]} 74. Qg5+ {[%clk 0:00:13]} 1/2-1/2


[Site "https://www.chess.com"]

[Event "Titled Tuesday Blitz March 22 Early 2022"]
[White "Zaksaite, Salomeja"]
[Black "Winkels, Marcel"]
[WhiteFideId "12801496"]
[BlackFideId "1003887"]
[WhiteElo "1953"]
[BlackElo "1900"]
[Result "1-0"]
[Round "09"]
[TimeControl "180+1"]
[Date "2022.03.22"]
[WhiteClock "0:02:29"]
[BlackClock "0:02:16"]

1. e4 {[%clk 0:02:57]}  d6 {[%clk 0:02:58]} 2. d4 {[%clk 0:02:57]}  Nf6 {[%clk 0:02:58]} 3. Nc3 {[%clk 0:02:57]}  e5 {[%clk 0:02:58]} 4. Nf3 {[%clk 0:02:55]}  Nbd7 {[%clk 0:02:57]} 5. Bc4 {[%clk 0:02:54]}  Be7 {[%clk 0:02:58]} 6. O-O {[%clk 0:02:54]}  O-O {[%clk 0:02:58]} 7. Re1 {[%clk 0:02:53]}  c6 {[%clk 0:02:58]} 8. a4 {[%clk 0:02:52]}  Qc7 {[%clk 0:02:54]} 9. Bf1 {[%clk 0:02:51]}  b6 {[%clk 0:02:54]} 10. b3 {[%clk 0:02:49]}  a5 {[%clk 0:02:53]} 11. Ba3 {[%clk 0:02:49]}  Re8 {[%clk 0:02:50]} 12. Qd2 {[%clk 0:02:48]}  Ba6 {[%clk 0:02:45]} 13. Bxa6 {[%clk 0:02:46]}  Rxa6 {[%clk 0:02:44]} 14. Rad1 {[%clk 0:02:46]}  Raa8 {[%clk 0:02:43]} 15. dxe5 {[%clk 0:02:46]}  dxe5 {[%clk 0:02:41]} 16. Bxe7 {[%clk 0:02:44]}  Rxe7 {[%clk 0:02:40]} 17. Qd6 {[%clk 0:02:45]}  Qxd6 {[%clk 0:02:37]} 18. Rxd6 {[%clk 0:02:45]}  Rc8 {[%clk 0:02:33]} 19. Red1 {[%clk 0:02:44]}  Nc5 {[%clk 0:02:31]} 20. Rd8+ {[%clk 0:02:33]}  Re8 {[%clk 0:02:30]} 21. Rxc8 {[%clk 0:02:31]}  Rxc8 {[%clk 0:02:29]} 22. Nxe5 {[%clk 0:02:29]}  Nfxe4 {[%clk 0:02:17]} 23. Nxe4 {[%clk 0:02:30]}  Nxe4 {[%clk 0:02:16]} 24. Nxc6 {[%clk 0:02:30]}  h6 {[%clk 0:02:16]} 25. Ne7+ {[%clk 0:02:29]} 1-0


[Site "https://www.chess.com"]

[Event "Titled Tuesday Blitz March 22 Early 2022"]
[White "Zemerov, Vladimir"]
[Black "Omelja, Artem"]
[WhiteFideId "4111583"]
[BlackFideId "14119846"]
[WhiteElo "2277"]
[BlackElo "2382"]
[Result "0-1"]
[Round "09"]
[TimeControl "180+1"]
[Date "2022.03.22"]
[WhiteClock "0:00:01"]
[BlackClock "0:00:01"]

1. d4 {[%clk 0:03:00]}  d5 {[%clk 0:02:52]} 2. c4 {[%clk 0:03:00]}  c6 {[%clk 0:02:50]} 3. Nf3 {[%clk 0:02:57]}  Nf6 {[%clk 0:02:47]} 4. Nc3 {[%clk 0:02:57]}  e6 {[%clk 0:02:46]} 5. e3 {[%clk 0:02:54]}  Nbd7 {[%clk 0:02:42]} 6. Qc2 {[%clk 0:02:54]}  Bd6 {[%clk 0:02:39]} 7. cxd5 {[%clk 0:02:51]}  exd5 {[%clk 0:02:37]} 8. Bd3 {[%clk 0:02:51]}  O-O {[%clk 0:02:33]} 9. Bd2 {[%clk 0:02:46]}  Re8 {[%clk 0:02:19]} 10. O-O-O {[%clk 0:02:44]}  b5 {[%clk 0:02:14]} 11. Kb1 {[%clk 0:02:43]}  a5 {[%clk 0:02:10]} 12. Ne2 {[%clk 0:02:41]}  Bb7 {[%clk 0:02:02]} 13. Ng3 {[%clk 0:02:38]}  a4 {[%clk 0:01:54]} 14. Nf5 {[%clk 0:02:35]}  Bf8 {[%clk 0:01:52]} 15. g4 {[%clk 0:02:25]}  Qb6 {[%clk 0:01:45]} 16. Rhg1 {[%clk 0:02:15]}  b4 {[%clk 0:01:40]} 17. g5 {[%clk 0:02:02]}  Ne4 {[%clk 0:01:40]} 18. Bxe4 {[%clk 0:02:00]}  dxe4 {[%clk 0:01:37]} 19. N3h4 {[%clk 0:01:54]}  Ba6 {[%clk 0:01:03]} 20. Qc1 {[%clk 0:01:25]}  Bd3+ {[%clk 0:00:47]} 21. Ka1 {[%clk 0:01:24]}  g6 {[%clk 0:00:46]} 22. Nh6+ {[%clk 0:01:21]}  Bxh6 {[%clk 0:00:46]} 23. gxh6 {[%clk 0:01:21]}  c5 {[%clk 0:00:35]} 24. Nf5 {[%clk 0:01:07]}  c4 {[%clk 0:00:22]} 25. d5 {[%clk 0:00:50]}  Nc5 {[%clk 0:00:14]} 26. Nd4 {[%clk 0:00:32]}  Nb3+ {[%clk 0:00:12]} 27. Nxb3 {[%clk 0:00:31]}  axb3 {[%clk 0:00:12]} 28. a3 {[%clk 0:00:21]}  Qd6 {[%clk 0:00:10]} 29. Bxb4 {[%clk 0:00:18]}  Qxb4 {[%clk 0:00:07]} 30. Rxd3 {[%clk 0:00:13]}  exd3 {[%clk 0:00:04]} 31. Kb1 {[%clk 0:00:04]}  Qe7 {[%clk 0:00:02]} 32. Qc3 {[%clk 0:00:04]}  Qe5 {[%clk 0:00:02]} 33. Qxc4 {[%clk 0:00:02]}  d2 {[%clk 0:00:02]} 34. Qd3 {[%clk 0:00:01]}  Red8 {[%clk 0:00:01]} 0-1


[Site "https://www.chess.com"]